Workbook

Sheet Overview
M3: ©EIOPA, 2026.
F6: RFR Risk-Corrected Spread Calculation for a Non-EEA Currency
F8: This workbook demonstrates the calculation of the risk-corrected spreads for the pound sterling. It supports the RFR technical documentation section 9 and annexes E-G. The workbook is based on the amendments to the Solvency II provisions set out in Directive (EU) 2025/2 and and Commission Delegated Regulation (EU) 2026/269.
F15: Version | H15: Last Change | K15: Legend
F16: 1 | H16: 2026-05-19 | K16: Input data
K17: Intermediary calculation
K18: Output data
F21: Abbreviations
F22: CORP | G22: corporate bond | J22: RC | K22: risk correction
F23: CQS | G23: credit quality step | J23: RCS | K23: risk-corrected spread
F24: GOV | G24: government bond | J24: RFR | K24: risk-free rate
F25: IRR | G25: internal rate of return | J25: S | K25: spread
F26: LTAS | G26: long-term average spread | J26: Y | K26: year
F27: MV | G27: market value
F30: Description
F32: The calculation of the risk-corrected spreads are described in Directive (EU) 2025/2 of the European Parliament and of the Council amending Directive 2009/138/EC Article 77d, Commission Delegated Regulation (EU) 2015/35 Articles 49 to 51 (amended by Commission Delegated Regulation (EU) 2026/269) as well as EIOPA's RFR Technical Documentation (see section 'Background material' at https://www.eiopa.europa.eu/tools-and-data/risk-free-interest-rate-term-structures_en).
F33: The input data consist of: - Reference portfolios, - Risk-free interest rates, - Government bond rates, - Corporate bond rates, - Long-term average spreads
F34: For each reference portfolio, firstly, the individual spreads and risk-corrections are computed for each component. Then, in a second step, the internal effective rates for the yield, the risk-free rate as well as the risk-corrected yield are calculated on the portfolio level and combined to result in the portfolio spread and the portfolio risk correction.
F35: The overall risk-corrected spread at currency level is then computed by weighting the government bond and corporate bond reference portfolio spreads and risk-corrections and taking their differences. This forms the basis for the volatility adjustment calculation.
F36: This workbook exemplifies the calculation of the risk-corrected spreads relevant for the computation of the volatility adjustment to the basic risk-free interest rate term structure of a non-EEA currency (pound sterling) based on dummy data. The necessary input data are shown in the marked input data worksheets. These data are then used for the spread and risk-correction calculations of the government bond and corporate bond currency reference portfolios. The final risk-corrected spreads are shown in the worksheet "RCS".
F37: This workbook requires Microsoft Excel 2021 or higher (including Excel 365). VBA macros must be activated for the computation of the internal effective rates. The internal effective rates can be calculated either individually by pressing the respective button in the "S&RC" worksheets or calculated together by pressing the "Calculate RCS" button in the "RCS" worksheet.
F38: Implementation Details
F40: Named ranges have been used to enhance the transparency of the calculations. The naming convention used is as follows: - Prefix with "R" for ranges - Prefix with "V" for (scalar) values - Prefix with "L" for validation lists The calculation of the internal effective rates uses the solver and is triggered using VBA. To access the VBA code, navigate to the "Developer" tab or use the shortcut ALT + F11.

Sheet Gov Rates
R3: ©EIOPA, 2026.
F6: Input Data: Government Bond Rates
F8: Maturity [Y] | G8: FR | H8: DE | I8: UK
F9: 1 | G9: 0.02042461268 | H9: 0.01762618953 | I9: 0.04258589198
F10: 2 | G10: 0.02073679712 | H10: 0.01780066765 | I10: 0.03847568899
F11: 3 | G11: 0.01968287187 | H11: 0.01832283408 | I11: 0.04057261168
F12: 4 | G12: 0.02217681444 | H12: 0.0182537191 | I12: 0.03987058647
F13: 5 | G13: 0.02684713583 | H13: 0.02186245411 | I13: 0.03948536908
F14: 6 | G14: 0.02830711681 | H14: 0.02341469612 | I14: 0.04199542858
F15: 7 | G15: 0.02694823497 | H15: 0.02078881807 | I15: 0.04435430432
F16: 8 | G16: 0.02804588903 | H16: 0.02183709499 | I16: 0.04181534834
F17: 9 | G17: 0.03103336342 | H17: 0.02414051408 | I17: 0.04399213497
F18: 10 | G18: 0.03388999707 | H18: 0.02579540286 | I18: 0.04494462877
F19: 11 | G19: 0.03315510294 | H19: 0.02694725382 | I19: 0.04457188247
F20: 12 | G20: 0.03511982593 | H20: 0.02889849852 | I20: 0.04528983996
F21: 13 | G21: 0.03391293555 | H21: 0.02925111188 | I21: 0.04797655712
F22: 14 | G22: 0.03646373224 | H22: 0.02744975562 | I22: 0.04829379442
F23: 15 | G23: 0.03650877175 | H23: 0.02841127221 | I23: 0.04772448496
F24: 16 | G24: 0.03554579096 | H24: 0.02847877356 | I24: 0.0502450012
F25: 17 | G25: 0.03786023968 | H25: 0.02774680843 | I25: 0.04938276916
F26: 18 | G26: 0.03749487898 | H26: 0.03072686445 | I26: 0.05072199218
F27: 19 | G27: 0.03745122434 | H27: 0.02964951164 | I27: 0.05396612021
F28: 20 | G28: 0.03869473965 | H28: 0.02768494841 | I28: 0.05341209517
F29: 21
F30: 22
F31: 23
F32: 24
F33: 25 | G33: 0.04114530975 | H33: 0.03114309955 | I33: 0.05415418778
F34: 26
F35: 27
F36: 28
F37: 29
F38: 30 | G38: 0.04132798459 | H38: 0.0289268153 | I38: 0.05147598651

Sheet Corp Data
R3: ©EIOPA, 2026.
F6: Input Data: Corporate Bond Data
F8: GBP Corporate Bonds
F10: Financials CQS 0 | J10: Financials CQS 1 | N10: Financials CQS 2
F12: Maturity Bucket | G12: Duration [Y] | H12: Yield | J12: Maturity Bucket | K12: Duration [Y] | L12: Yield | N12: Maturity Bucket | O12: Duration [Y] | P12: Yield
F13: 1-3Y | G13: =K13 -> 1.922151734 | H13: =85%*L13 -> 0.01940473735 | J13: 1-3Y | K13: 1.922151734 | L13: 0.02282910277 | N13: 1-3Y | O13: 1.79047697 | P13: 0.024570515
F14: 3-5Y | G14: =K14 -> 3.65466491 | H14: =85%*L14 -> 0.0227500176 | J14: 3-5Y | K14: 3.65466491 | L14: 0.02676472658 | N14: 3-5Y | O14: 3.846126528 | P14: 0.02790158523
F15: 5-7Y | G15: 5.697547114 | H15: 0.02368205455 | J15: 5-7Y | K15: 5.697547114 | L15: 0.02786124065 | N15: 5-7Y | O15: 5.317834339 | P15: 0.03271147539
F16: 7-10Y | G16: 7.316688476 | H16: 0.02568787232 | J16: 7-10Y | K16: 7.316688476 | L16: 0.03022102626 | N16: 7-10Y | O16: 7.238098684 | P16: 0.03443177026
F17: 10-15Y | G17: 12.01561289 | H17: 0.0324571016 | J17: 10-15Y | K17: 12.01561289 | L17: 0.03818482541 | N17: 10-15Y | O17: 10.02345183 | P17: 0.04036027422
F18: 15+ | G18: =K18 -> 15.01561289 | H18: =85%*L18 -> 0.0361291016 | J18: 15+ | K18: 15.01561289 | L18: 0.04250482541 | N18: 15+ | O18: 15.01561289 | P18: 0.04250482541
F20: Financials CQS 3 | J20: Financials CQS 4 | N20: Financials CQS 5 | R20: Derived with the k-factor approach
F22: Maturity Bucket | G22: Duration [Y] | H22: Yield | J22: Maturity Bucket | K22: Duration [Y] | L22: Yield | N22: Maturity Bucket | O22: Duration [Y] | P22: Yield
F23: 1-3Y | G23: 1.65316927 | H23: 0.03003152195 | J23: 1-3Y | K23: 2.850026347 | L23: 0.05128437924 | N23: 1-3Y | O23: 2.700973912 | P23: 0.07594213225
F24: 3-5Y | G24: 3.807416161 | H24: 0.03232133767 | J24: 3-5Y | K24: 2.850026347 | L24: 0.05128437924 | N24: 3-5Y | O24: 2.700973912 | P24: 0.07594213225
F25: 5-7Y | G25: 5.248238223 | H25: 0.03525863138 | J25: 5-7Y | K25: 2.850026347 | L25: 0.05128437924 | N25: 5-7Y | O25: 2.700973912 | P25: 0.07594213225
F26: 7-10Y | G26: 7.051505233 | H26: 0.03963055472 | J26: 7-10Y | K26: 2.850026347 | L26: 0.05128437924 | N26: 7-10Y | O26: 2.700973912 | P26: 0.07594213225
F27: 10-15Y | G27: 13.02565813 | H27: 0.04096257605 | J27: 10-15Y | K27: 2.850026347 | L27: 0.05128437924 | N27: 10-15Y | O27: 2.700973912 | P27: 0.07594213225
F28: 15+ | G28: 15.01561289 | H28: 0.04528257605 | J28: 15+ | K28: 2.850026347 | L28: 0.05128437924 | N28: 15+ | O28: 2.700973912 | P28: 0.07594213225
F31: Non-Financials CQS 0 | J31: Non-Financials CQS 1 | N31: Non-Financials CQS 2
F33: Maturity Bucket | G33: Duration [Y] | H33: Yield | J33: Maturity Bucket | K33: Duration [Y] | L33: Yield | N33: Maturity Bucket | O33: Duration [Y] | P33: Yield
F34: 1-3Y | G34: =K34 -> 1.700581613 | H34: =85%*L34 -> 0.02113031663 | J34: 1-3Y | K34: 1.700581613 | L34: 0.02485919603 | N34: 1-3Y | O34: 1.821093716 | P34: 0.02373268368
F35: 3-5Y | G35: =K35 -> 3.84692696 | H35: =85%*L35 -> 0.02176022291 | J35: 3-5Y | K35: 3.84692696 | L35: 0.02560026225 | N35: 3-5Y | O35: 3.593754673 | P35: 0.02719612863
F36: 5-7Y | G36: 5.629118542 | H36: 0.0243256572 | J36: 5-7Y | K36: 5.629118542 | L36: 0.02861842024 | N36: 5-7Y | O36: 5.5599026 | P36: 0.03121200868
F37: 7-10Y | G37: 7.531081849 | H37: 0.02624345628 | J37: 7-10Y | K37: 7.531081849 | L37: 0.03087465444 | N37: 7-10Y | O37: 7.503192239 | P37: 0.03530318771
F38: 10-15Y | G38: 12.19444395 | H38: 0.02971966777 | J38: 10-15Y | K38: 12.19444395 | L38: 0.03496431502 | N38: 10-15Y | O38: 11.52694798 | P38: 0.03647207329
F39: 15+ | G39: =K39 -> 15.01561289 | H39: =85%*L39 -> 0.0361291016 | J39: 15+ | K39: 15.01561289 | L39: 0.04250482541 | N39: 15+ | O39: 15.01561289 | P39: 0.04250482541
F41: Non-Financials CQS 3 | J41: Non-Financials CQS 4 | N41: Non-Financials CQS 5 | R41: Derived with the k-factor approach
F43: Maturity Bucket | G43: Duration [Y] | H43: Yield | J43: Maturity Bucket | K43: Duration [Y] | L43: Yield | N43: Maturity Bucket | O43: Duration [Y] | P43: Yield
F44: 1-3Y | G44: 1.955758587 | H44: 0.02751968401 | J44: 1-3Y | K44: 2.986228574 | L44: 0.04403809825 | N44: 1-3Y | O44: 2.135648956 | P44: 0.06148741785
F45: 3-5Y | G45: 3.787255726 | H45: 0.03205249855 | J45: 3-5Y | K45: 2.986228574 | L45: 0.04403809825 | N45: 3-5Y | O45: 2.135648956 | P45: 0.06148741785
F46: 5-7Y | G46: 5.139829447 | H46: 0.03401032644 | J46: 5-7Y | K46: 2.986228574 | L46: 0.04403809825 | N46: 5-7Y | O46: 2.135648956 | P46: 0.06148741785
F47: 7-10Y | G47: 7.038818349 | H47: 0.03618536332 | J47: 7-10Y | K47: 2.986228574 | L47: 0.04403809825 | N47: 7-10Y | O47: 2.135648956 | P47: 0.06148741785
F48: 10-15Y | G48: 10.48426982 | H48: 0.04056888742 | J48: 10-15Y | K48: 2.986228574 | L48: 0.04403809825 | N48: 10-15Y | O48: 2.135648956 | P48: 0.06148741785
F49: 15+ | G49: 15.01561289 | H49: 0.04250482541 | J49: 15+ | K49: 2.986228574 | L49: 0.04403809825 | N49: 15+ | O49: 2.135648956 | P49: 0.06148741785

Sheet RFR
M3: ©EIOPA, 2026.
F6: Input Data: Risk-Free Interest Rates
F8: EIOPA Basic Risk-Free Interest Rates
F10: Maturity [Y] | G10: GBP | H10: EUR
F11: 1 | G11: 0.01981534233 | H11: 0.01067975925
F12: 2 | G12: 0.01821687922 | H12: 0.0118997801
F13: 3 | G13: 0.01938535624 | H13: 0.0189498933
F14: 4 | G14: 0.01851301381 | H14: 0.01543784622
F15: 5 | G15: 0.01892195156 | H15: 0.01700301864
F16: 6 | G16: 0.02068612671 | H16: 0.01697134494
F17: 7 | G17: 0.02063078763 | H17: 0.01742102235
F18: 8 | G18: 0.02351730711 | H18: 0.01549084665
F19: 9 | G19: 0.02223538469 | H19: 0.01920004584
F20: 10 | G20: 0.02550812284 | H20: 0.01715896865
F21: 11 | G21: 0.02386920061 | H21: 0.02023933814
F22: 12 | G22: 0.0239771566 | H22: 0.01673256904
F23: 13 | G23: 0.02402050642 | H23: 0.02284625344
F24: 14 | G24: 0.02642974425 | H24: 0.02583148441
F25: 15 | G25: 0.02721710711 | H25: 0.01784575838
F26: 16 | G26: 0.02708172888 | H26: 0.02160723723
F27: 17 | G27: 0.02450464181 | H27: 0.01533798444
F28: 18 | G28: 0.02725262935 | H28: 0.01847463897
F29: 19 | G29: 0.02664459919 | H29: 0.0242938286
F30: 20 | G30: 0.02616838495 | H30: 0.02375386418
F31: 21 | G31: 0.02779007325 | H31: 0.02029188055
F32: 22 | G32: 0.0266866234 | H32: 0.02497316172
F33: 23 | G33: 0.02756839716 | H33: 0.02337377031
F34: 24 | G34: 0.026759068 | H34: 0.02169178591
F35: 25 | G35: 0.02574974089 | H35: 0.02115802592
F36: 26 | G36: 0.02453002858 | H36: 0.01592073309
F37: 27 | G37: 0.02677229761 | H37: 0.02265015777
F38: 28 | G38: 0.02489219756 | H38: 0.01691554974
F39: 29 | G39: 0.025463374 | H39: 0.0163557202
F40: 30 | G40: 0.02631519184 | H40: 0.01792675968

Sheet LTAS
L3: ©EIOPA, 2026.
F6: Input Data: Long-Term Average Spreads
F8: Central Government and Central Bank Bonds
F10: Maturity [Y] | G10: FR | H10: DE | I10: UK
F11: 1 | G11: -0.002119799561 | H11: -0.0006349076404 | I11: -0.002084425403
F12: 2 | G12: -0.0004222064515 | H12: -0.001282897344 | I12: -0.001118375299
F13: 3 | G13: -0.0005202479401 | H13: -0.004010377735 | I13: -0.002756488485
F14: 4 | G14: -0.001878031118 | H14: -0.003496551834 | I14: -0.001446445126
F15: 5 | G15: 0.0003037809327 | H15: -0.002397052687 | I15: -0.0008359442843
F16: 6 | G16: -0.001312830298 | H16: -0.001662714658 | I16: 8.321870166e-05
F17: 7 | G17: -0.0009895278631 | H17: -0.002519804529 | I17: -0.001476576341
F18: 8 | G18: 0.0009640029598 | H18: -0.001722505955 | I18: -0.001335373801
F19: 9 | G19: 0.002267590981 | H19: -0.002420130317 | I19: -0.0009227394697
F20: 10 | G20: 0.0009683486891 | H20: -0.003076705096 | I20: -0.002307645728
F21: 11 | G21: 0.0009683486891 | H21: -0.003076705096 | I21: -0.002307645728
F22: 12 | G22: 0.0009683486891 | H22: -0.003076705096 | I22: -0.002307645728
F23: 13 | G23: 0.0009683486891 | H23: -0.003076705096 | I23: -0.002307645728
F24: 14 | G24: 0.0009683486891 | H24: -0.003076705096 | I24: -0.002307645728
F25: 15 | G25: 0.0009683486891 | H25: -0.003076705096 | I25: -0.002307645728
F26: 16 | G26: 0.0009683486891 | H26: -0.003076705096 | I26: -0.002307645728
F27: 17 | G27: 0.0009683486891 | H27: -0.003076705096 | I27: -0.002307645728
F28: 18 | G28: 0.0009683486891 | H28: -0.003076705096 | I28: -0.002307645728
F29: 19 | G29: 0.0009683486891 | H29: -0.003076705096 | I29: -0.002307645728
F30: 20 | G30: 0.0009683486891 | H30: -0.003076705096 | I30: -0.002307645728
F31: 21 | G31: 0.0009683486891 | H31: -0.003076705096 | I31: -0.002307645728
F32: 22 | G32: 0.0009683486891 | H32: -0.003076705096 | I32: -0.002307645728
F33: 23 | G33: 0.0009683486891 | H33: -0.003076705096 | I33: -0.002307645728
F34: 24 | G34: 0.0009683486891 | H34: -0.003076705096 | I34: -0.002307645728
F35: 25 | G35: 0.0009683486891 | H35: -0.003076705096 | I35: -0.002307645728
F36: 26 | G36: 0.0009683486891 | H36: -0.003076705096 | I36: -0.002307645728
F37: 27 | G37: 0.0009683486891 | H37: -0.003076705096 | I37: -0.002307645728
F38: 28 | G38: 0.0009683486891 | H38: -0.003076705096 | I38: -0.002307645728
F39: 29 | G39: 0.0009683486891 | H39: -0.003076705096 | I39: -0.002307645728
F40: 30 | G40: 0.0009683486891 | H40: -0.003076705096 | I40: -0.002307645728
F43: Assets other than Central Government and Central Bank Bonds
F45: GBP Financials
F47: Maturity [Y] | G47: CQS 0 | H47: CQS 1 | I47: CQS 2 | J47: CQS 3 | K47: CQS 4 | L47: CQS 5 | M47: CQS 6
F48: 1 | G48: 0.001954710944 | H48: 0.006828200287 | I48: 0.01412946745 | J48: 0.03724665173 | K48: 0.06663668328 | L48: 0.1416570253 | M48: 0.1416570253
F49: 2 | G49: 0.001954710944 | H49: 0.006828200287 | I49: 0.01412946745 | J49: 0.03724665173 | K49: 0.06663668328 | L49: 0.1416570253 | M49: 0.1416570253
F50: 3 | G50: 0.002355118249 | H50: 0.007459172398 | I50: 0.01436898991 | J50: 0.03437826799 | K50: 0.06563809481 | L50: 0.1406597536 | M50: 0.1406597536
F51: 4 | G51: 0.00286884903 | H51: 0.008186176155 | I51: 0.0151142393 | J51: 0.03244379499 | K51: 0.0651778771 | L51: 0.1402223213 | M51: 0.1402223213
F52: 5 | G52: 0.003393459035 | H52: 0.00881019136 | I52: 0.01569076908 | J52: 0.030297683 | K52: 0.06485716206 | L52: 0.1399237986 | M52: 0.1399237986
F53: 6 | G53: 0.004094779029 | H53: 0.009718859182 | I53: 0.01668627319 | J53: 0.02901623586 | K53: 0.06455038789 | L53: 0.1396170245 | M53: 0.1396170245
F54: 7 | G54: 0.004618383586 | H54: 0.01041053471 | I54: 0.01711251209 | J54: 0.02763529576 | K54: 0.06424757063 | L54: 0.1393142072 | M54: 0.1393142072
F55: 8 | G55: 0.005020360596 | H55: 0.01095221723 | I55: 0.01685622104 | J55: 0.02606187417 | K55: 0.06396668273 | L55: 0.1390333193 | M55: 0.1390333193
F56: 9 | G56: 0.005757825488 | H56: 0.01261767448 | I56: 0.01765698857 | J56: 0.02485060605 | K56: 0.06371448468 | L56: 0.1387811213 | M56: 0.1387811213
F57: 10 | G57: 0.005691227791 | H57: 0.012601887 | I57: 0.01727431935 | J57: 0.02433614767 | K57: 0.06348934827 | L57: 0.1385559849 | M57: 0.1385559849
F58: 11 | G58: 0.005483186183 | H58: 0.01241138609 | I58: 0.01703891442 | J58: 0.02460372004 | K58: 0.0632750551 | L58: 0.1383416917 | M58: 0.1383416917
F59: 12 | G59: 0.00539534433 | H59: 0.0123590721 | I59: 0.01715715605 | J59: 0.02505317221 | K59: 0.06307212712 | L59: 0.1381387637 | M59: 0.1381387637
F60: 13 | G60: 0.005401037976 | H60: 0.01240492451 | I60: 0.01731953624 | J60: 0.02516246781 | K60: 0.06289907325 | L60: 0.1379657098 | M60: 0.1379657098
F61: 14 | G61: 0.005428790643 | H61: 0.01245089023 | I61: 0.01732032715 | J61: 0.02516246781 | K61: 0.06272710812 | L61: 0.1377937447 | M61: 0.1377937447
F62: 15 | G62: 0.005444457185 | H62: 0.01247291029 | I62: 0.01732032715 | J62: 0.02516246781 | K62: 0.06253242075 | L62: 0.1375990573 | M62: 0.1375990573
F63: 16 | G63: 0.005462474345 | H63: 0.01249613037 | I63: 0.01732032715 | J63: 0.02516246781 | K63: 0.06223478533 | L63: 0.1373014219 | M63: 0.1373014219
F64: 17 | G64: 0.005478307168 | H64: 0.01251568378 | I64: 0.01732032715 | J64: 0.02516246781 | K64: 0.06206121636 | L64: 0.137127853 | M64: 0.137127853
F65: 18 | G65: 0.005485723478 | H65: 0.0125248527 | I65: 0.01732032715 | J65: 0.02516246781 | K65: 0.06194203758 | L65: 0.1370086742 | M65: 0.1370086742
F66: 19 | G66: 0.005485723478 | H66: 0.0125248527 | I66: 0.01732032715 | J66: 0.02516246781 | K66: 0.06192894337 | L66: 0.13699558 | M66: 0.13699558
F67: 20 | G67: 0.005485723478 | H67: 0.0125248527 | I67: 0.01732032715 | J67: 0.02516246781 | K67: 0.06201176403 | L67: 0.1370784006 | M67: 0.1370784006
F68: 21 | G68: 0.005485723478 | H68: 0.0125248527 | I68: 0.01732032715 | J68: 0.02516246781 | K68: 0.06202329686 | L68: 0.1370899334 | M68: 0.1370899334
F69: 22 | G69: 0.005485723478 | H69: 0.0125248527 | I69: 0.01732032715 | J69: 0.02516246781 | K69: 0.06194043396 | L69: 0.1370070706 | M69: 0.1370070706
F70: 23 | G70: 0.005485723478 | H70: 0.0125248527 | I70: 0.01732032715 | J70: 0.02516246781 | K70: 0.06179716052 | L70: 0.1368637971 | M70: 0.1368637971
F71: 24 | G71: 0.005485723478 | H71: 0.0125248527 | I71: 0.01732032715 | J71: 0.02516246781 | K71: 0.06162731107 | L71: 0.1366939477 | M71: 0.1366939477
F72: 25 | G72: 0.005485723478 | H72: 0.0125248527 | I72: 0.01732032715 | J72: 0.02516246781 | K72: 0.06145460463 | L72: 0.1365212412 | M72: 0.1365212412
F73: 26 | G73: 0.005485723478 | H73: 0.0125248527 | I73: 0.01732032715 | J73: 0.02516246781 | K73: 0.06129102895 | L73: 0.1363576655 | M73: 0.1363576655
F74: 27 | G74: 0.005485723478 | H74: 0.0125248527 | I74: 0.01732032715 | J74: 0.02516246781 | K74: 0.06113483776 | L74: 0.1362014744 | M74: 0.1362014744
F75: 28 | G75: 0.005485723478 | H75: 0.0125248527 | I75: 0.01732032715 | J75: 0.02516246781 | K75: 0.06098265784 | L75: 0.1360492944 | M75: 0.1360492944
F76: 29 | G76: 0.005485723478 | H76: 0.0125248527 | I76: 0.01732032715 | J76: 0.02516246781 | K76: 0.06083168123 | L76: 0.1358983178 | M76: 0.1358983178
F77: 30 | G77: 0.005485723478 | H77: 0.0125248527 | I77: 0.01732032715 | J77: 0.02516246781 | K77: 0.06067922737 | L77: 0.135745864 | M77: 0.135745864
F79: GBP Non-Financials
F81: Maturity [Y] | G81: CQS 0 | H81: CQS 1 | I81: CQS 2 | J81: CQS 3 | K81: CQS 4 | L81: CQS 5 | M81: CQS 6
F82: 1 | G82: -0.001314566391 | H82: 0.002981991657 | I82: 0.006067189979 | J82: 0.01242968551 | K82: 0.04829611679 | L82: 0.07455354209 | M82: 0.07455354209
F83: 2 | G83: -0.001314566391 | H83: 0.002981991657 | I83: 0.006067189979 | J83: 0.01242968551 | K83: 0.04829611679 | L83: 0.07455354209 | M83: 0.07455354209
F84: 3 | G84: -0.00136173908 | H84: 0.003086399069 | I84: 0.006576618228 | J84: 0.01376773032 | K84: 0.04705018602 | L84: 0.07328681656 | M84: 0.07328681656
F85: 4 | G85: -0.0008178236544 | H85: 0.003797642359 | I85: 0.00740005794 | J85: 0.0152918585 | K85: 0.04623992246 | L85: 0.07220321818 | M85: 0.07220321818
F86: 5 | G86: -0.0001059327017 | H86: 0.004621094989 | I86: 0.00821678227 | J86: 0.01636641126 | K86: 0.04595028064 | L86: 0.07175596979 | M86: 0.07175596979
F87: 6 | G87: 0.0005648102297 | H87: 0.005487489251 | I87: 0.009455530701 | J87: 0.0168599613 | K87: 0.04564350647 | L87: 0.07144919562 | M87: 0.07144919562
F88: 7 | G88: 0.001200835562 | H88: 0.006316896152 | I88: 0.01050148773 | J88: 0.01700356573 | K88: 0.04534068921 | L88: 0.07114637837 | M88: 0.07114637837
F89: 8 | G89: 0.001877321444 | H89: 0.007197199318 | I89: 0.01094663556 | J89: 0.0170467619 | K89: 0.04505980131 | L89: 0.07086549046 | M89: 0.07086549046
F90: 9 | G90: 0.002711671223 | H90: 0.008994970142 | I90: 0.01217816813 | J90: 0.01695333891 | K90: 0.04480760326 | L90: 0.07061329242 | M90: 0.07061329242
F91: 10 | G91: 0.003324154831 | H91: 0.009817095278 | I91: 0.01230902251 | J91: 0.01683511286 | K91: 0.04458246685 | L91: 0.070388156 | M91: 0.070388156
F92: 11 | G92: 0.003092683448 | H92: 0.009598381754 | I92: 0.01231155781 | J92: 0.01684602142 | K92: 0.04436817368 | L92: 0.07017386284 | M92: 0.07017386284
F93: 12 | G93: 0.002865230332 | H93: 0.009377756399 | I93: 0.01235553003 | J93: 0.01695875394 | K93: 0.0441652457 | L93: 0.06997093485 | M93: 0.06997093485
F94: 13 | G94: 0.002636041882 | H94: 0.009155945454 | I94: 0.01248115532 | J94: 0.0171056189 | K94: 0.04399219183 | L94: 0.06979788098 | M94: 0.06979788098
F95: 14 | G95: 0.002630327946 | H95: 0.009159938727 | I95: 0.01264337858 | J95: 0.01721603731 | K95: 0.0438202267 | L95: 0.06962591585 | M95: 0.06962591585
F96: 15 | G96: 0.002659948491 | H96: 0.009201125635 | I96: 0.01276899305 | J96: 0.01721842756 | K96: 0.04362553933 | L96: 0.06943122848 | M96: 0.06943122848
F97: 16 | G97: 0.002674855217 | H97: 0.009219689356 | I97: 0.01285859177 | J97: 0.01721842756 | K97: 0.04332790391 | L97: 0.06913359306 | M97: 0.06913359306
F98: 17 | G98: 0.002689363018 | H98: 0.009236747864 | I98: 0.01289976805 | J98: 0.01721842756 | K98: 0.04315433494 | L98: 0.0689600241 | M98: 0.0689600241
F99: 18 | G99: 0.00269817475 | H99: 0.009246928576 | I99: 0.01289976805 | J99: 0.01721842756 | K99: 0.04303515616 | L99: 0.06884084532 | M99: 0.06884084532
F100: 19 | G100: 0.002706835825 | H100: 0.009256956145 | I100: 0.01289976805 | J100: 0.01721842756 | K100: 0.04302206195 | L100: 0.0688277511 | M100: 0.0688277511
F101: 20 | G101: 0.002714530362 | H101: 0.009265823121 | I101: 0.01289976805 | J101: 0.01721842756 | K101: 0.04310488261 | L101: 0.06891057176 | M101: 0.06891057176
F102: 21 | G102: 0.002721923018 | H102: 0.009274344963 | I102: 0.01289976805 | J102: 0.01721842756 | K102: 0.04311641544 | L102: 0.0689221046 | M102: 0.0689221046
F103: 22 | G103: 0.002728858552 | H103: 0.009282390656 | I103: 0.01289976805 | J103: 0.01721842756 | K103: 0.04303355254 | L103: 0.0688392417 | M103: 0.0688392417
F104: 23 | G104: 0.002735138135 | H104: 0.009289762598 | I104: 0.01289976805 | J104: 0.01721842756 | K104: 0.0428902791 | L104: 0.06869596826 | M104: 0.06869596826
F105: 24 | G105: 0.00274125671 | H105: 0.009296956107 | I105: 0.01289976805 | J105: 0.01721842756 | K105: 0.04272042965 | L105: 0.0685261188 | M105: 0.0685261188
F106: 25 | G106: 0.002747790987 | H106: 0.009304545865 | I106: 0.01289976805 | J106: 0.01721842756 | K106: 0.04254772321 | L106: 0.06835341236 | M106: 0.06835341236
F107: 26 | G107: 0.002752288219 | H107: 0.009309690601 | I107: 0.01289976805 | J107: 0.01721842756 | K107: 0.04238414753 | L107: 0.06818983669 | M107: 0.06818983669
F108: 27 | G108: 0.002755582536 | H108: 0.009313415609 | I108: 0.01289976805 | J108: 0.01721842756 | K108: 0.04222795634 | L108: 0.0680336455 | M108: 0.0680336455
F109: 28 | G109: 0.002756497852 | H109: 0.009314469653 | I109: 0.01289976805 | J109: 0.01721842756 | K109: 0.04207577642 | L109: 0.06788146557 | M109: 0.06788146557
F110: 29 | G110: 0.002756570993 | H110: 0.009314554454 | I110: 0.01289976805 | J110: 0.01721842756 | K110: 0.04192479981 | L110: 0.06773048896 | M110: 0.06773048896
F111: 30 | G111: 0.002756570993 | H111: 0.009314554454 | I111: 0.01289976805 | J111: 0.01721842756 | K111: 0.04177234595 | L111: 0.06757803511 | M111: 0.06757803511

Sheet Reference Portfolio Weights
M3: ©EIOPA, 2026.
F6: Input Data: Reference Portfolio Weights
F8: Currency Weights
F10: Currency | G10: Central Gov | H10: Other Assets
F11: GBP | G11: 0.171 | H11: 0.555

Sheet Government Bond Ref. Portfolios
M3: ©EIOPA, 2026.
F6: Input Data: Government Bond Reference Portfolios
F8: Currency RCS GBP - Ref. Port. Central Government and Central Bank Bonds
F10: Issuer | G10: Composition | H10: Duration [Y] | I10: Yield Cash Flow | J10: RFR Cash Flow | K10: RC Yield Cash Flow
F11: AT
F12: BE
F13: BG
F14: HR
F15: CY
F16: CZ
F17: DK
F18: EE
F19: FI
F20: FR | G20: 0.02 | H20: 2.4 | I20: 0.452855282 | J20: 0.4260696667 | K20: 0.4459930447
F21: DE | G21: 0.05 | H21: 3.3 | I21: 0.199789095 | J21: 0.1879719118 | K21: 0.1967616374
F22: GR | I22: 0 | J22: 0 | K22: 0
F23: HU | I23: 0 | J23: 0 | K23: 0
F24: IS | I24: 0 | J24: 0 | K24: 0
F25: IE
F26: IT
F27: LV
F28: LI
F29: LT
F30: LU
F31: MT
F32: NL
F33: NO
F34: PL
F35: PT
F36: RO
F37: SK
F38: SI
F39: ES
F40: SE | I40: 0 | J40: 0 | K40: 0
F41: CH | I41: 0 | J41: 0 | K41: 0
F42: UK | G42: 0.93 | H42: 6.7 | I42: 0.13319273 | J42: 0.1253146079 | K42: 0.1311744249
F43: AU | I43: 0 | J43: 0 | K43: 0
F44: CA | I44: 0 | J44: 0 | K44: 0
F45: CN | I45: 0 | J45: 0 | K45: 0
F46: HK | I46: 0 | J46: 0 | K46: 0
F47: JP | I47: 0 | J47: 0 | K47: 0
F48: US | I48: 0 | J48: 0 | K48: 0

Sheet Corporate Bond Ref. Portfolio
M3: ©EIOPA, 2026.
F6: Input Data: Corporate Bond Reference Portfolios
F8: Currency RCS GBP - Ref. Port. of Assets other than Central Government and Central Banks Bonds
F10: Issuer | G10: Composition | H10: Duration [Y] | I10: Yield Cash Flow | J10: RFR Cash Flow | K10: RC Yield Cash Flow
F11: Financials CQS 0 | G11: 0.21 | H11: 2.6 | I11: 0.1715509423 | J11: 0.1666276309 | K11: 0.1691426065
F12: Financials CQS 1 | G12: 0.06 | H12: 1.9 | I12: 0.1422852941 | J12: 0.1363309278 | K12: 0.1392978139
F13: Financials CQS 2 | G13: 0.17 | H13: 3.2 | I13: 0.3424925113 | J13: 0.3242967021 | K13: 0.3332957862
F14: Financials CQS 3 | G14: 0.07 | H14: 4.3 | I14: 0.1506613239 | J14: 0.1423979514 | K14: 0.1464855855
F15: Financials CQS 4
F16: Financials CQS 5 | I16: 0 | J16: 0 | K16: 0
F17: Financials CQS 6 | I17: 0 | J17: 0 | K17: 0
F18: Non-Financials CQS 0 | G18: 0.06 | H18: 4 | I18: 0.05150176968 | J18: 0.05012584315 | K18: 0.05107421759
F19: Non-Financials CQS 1 | G19: 0.05 | H19: 4.6 | I19: 0.05061602684 | J19: 0.04801144594 | K19: 0.04957748923
F20: Non-Financials CQS 2 | G20: 0.15 | H20: 5.5 | I20: 0.1062806904 | J20: 0.1022481958 | K20: 0.1047852487
F21: Non-Financials CQS 3 | G21: 0.21 | H21: 5.3 | I21: 0.1509614552 | J21: 0.1446116202 | K21: 0.1485347509
F22: Non-Financials CQS 4 | G22: 0.01 | H22: 3.1 | I22: 0.01159465193 | J22: 0.01081758478 | K22: 0.0113279776
F23: Non-Financials CQS 5 | G23: 0.01 | H23: 1.5 | I23: 0.01159465193 | J23: 0.01081758478 | K23: 0.0113279776
F24: Non-Financials CQS 6 | I24: 0 | J24: 0 | K24: 0

Sheet S&RC Gov Currency
N3: ©EIOPA, 2026.
F6: Currency RCS: Government Bonds
F8: Model Bond Calculations
F10: Issuer | G10: FR | H10: DE | I10: UK
F11: Issuer currency | G11: EUR | H11: EUR | I11: GBP
F12: Relative market value | G12: =_xlfn.XLOOKUP(G$10, T.RefPortCurrencyGov[Issuer], T.RefPortCurrencyGov[Composition]) -> 0.02 | H12: =_xlfn.XLOOKUP(H$10, T.RefPortCurrencyGov[Issuer], T.RefPortCurrencyGov[Composition]) -> 0.05 | I12: =_xlfn.XLOOKUP(I$10, T.RefPortCurrencyGov[Issuer], T.RefPortCurrencyGov[Composition]) -> 0.93
F13: Duration [Y] | G13: =_xlfn.XLOOKUP(G$10, T.RefPortCurrencyGov[Issuer], T.RefPortCurrencyGov[Duration '[Y']]) -> 2.4 | H13: =_xlfn.XLOOKUP(H$10, T.RefPortCurrencyGov[Issuer], T.RefPortCurrencyGov[Duration '[Y']]) -> 3.3 | I13: =_xlfn.XLOOKUP(I$10, T.RefPortCurrencyGov[Issuer], T.RefPortCurrencyGov[Duration '[Y']]) -> 6.7
F14: Integer D less than or equal to the duration [Y] | G14: =INT(G$13) -> 2 | H14: =INT(H$13) -> 3 | I14: 6
F15: Integer D+1 [Y] | G15: =G14+1 -> 3 | H15: =H14+1 -> 4 | I15: 7
F17: Linear interpolation of market yields before risk correction
F18: Market yield before risk correction corresponding to D | G18: =_xlfn.LET(_xlpm.YIELDCOLUMN, INDIRECT("T.GovRates["&G$10&"]"), _xlfn.XLOOKUP(G$14,T.GovRates[Maturity '[Y']], _xlpm.YIELDCOLUMN)) -> 0.02073679712 | H18: =_xlfn.LET(_xlpm.YIELDCOLUMN, INDIRECT("T.GovRates["&H$10&"]"), _xlfn.XLOOKUP(H$14,T.GovRates[Maturity '[Y']], _xlpm.YIELDCOLUMN)) -> 0.01832283408 | I18: =_xlfn.LET(_xlpm.YIELDCOLUMN, INDIRECT("T.GovRates["&I$10&"]"), _xlfn.XLOOKUP(I$14,T.GovRates[Maturity '[Y']], _xlpm.YIELDCOLUMN)) -> 0.04199542858
F19: Market yield before risk correction corresponding to D+1 | G19: =_xlfn.LET(_xlpm.YIELDCOLUMN, INDIRECT("T.GovRates["&G$10&"]"), _xlfn.XLOOKUP(G$15,T.GovRates[Maturity '[Y']], _xlpm.YIELDCOLUMN)) -> 0.01968287187 | H19: =_xlfn.LET(_xlpm.YIELDCOLUMN, INDIRECT("T.GovRates["&H$10&"]"), _xlfn.XLOOKUP(H$15,T.GovRates[Maturity '[Y']], _xlpm.YIELDCOLUMN)) -> 0.0182537191 | I19: =_xlfn.LET(_xlpm.YIELDCOLUMN, INDIRECT("T.GovRates["&I$10&"]"), _xlfn.XLOOKUP(I$15,T.GovRates[Maturity '[Y']], _xlpm.YIELDCOLUMN)) -> 0.04435430432
F20: Linear Interpolation of market yield before risk correction | G20: =G18+(G19-G18)/(G15-G14)*(G$13-G14) -> 0.02031522702 | H20: 0.01830209959 | I20: 0.0436466416
F22: Linear interpolation of risk-free rates
F23: Basic risk-free rate corresponding to D | G23: =_xlfn.LET(_xlpm.RFRCOLUMN, INDIRECT("T.RFR["&G$11&"]"), _xlfn.XLOOKUP(G$14, T.RFR[Maturity '[Y']], _xlpm.RFRCOLUMN)) -> 0.0118997801 | H23: =_xlfn.LET(_xlpm.RFRCOLUMN, INDIRECT("T.RFR["&H$11&"]"), _xlfn.XLOOKUP(H$14, T.RFR[Maturity '[Y']], _xlpm.RFRCOLUMN)) -> 0.0189498933 | I23: =_xlfn.LET(_xlpm.RFRCOLUMN, INDIRECT("T.RFR["&I$11&"]"), _xlfn.XLOOKUP(I$14, T.RFR[Maturity '[Y']], _xlpm.RFRCOLUMN)) -> 0.02068612671
F24: Basic risk-free rate corresponding to D+1 | G24: =_xlfn.LET(_xlpm.RFRCOLUMN, INDIRECT("T.RFR["&G$11&"]"), _xlfn.XLOOKUP(G$15, T.RFR[Maturity '[Y']], _xlpm.RFRCOLUMN)) -> 0.0189498933 | H24: =_xlfn.LET(_xlpm.RFRCOLUMN, INDIRECT("T.RFR["&H$11&"]"), _xlfn.XLOOKUP(H$15, T.RFR[Maturity '[Y']], _xlpm.RFRCOLUMN)) -> 0.01543784622 | I24: =_xlfn.LET(_xlpm.RFRCOLUMN, INDIRECT("T.RFR["&I$11&"]"), _xlfn.XLOOKUP(I$15, T.RFR[Maturity '[Y']], _xlpm.RFRCOLUMN)) -> 0.02063078763
F25: Linear interpolation of basic risk-free rate | G25: =G23+(G24-G23)/(G15-G14) * (G$13-G14) -> 0.01471982538 | H25: =H23+(H24-H23)/(H15-H14) * (H$13-H14) -> 0.01789627917 | I25: 0.02064738935
F27: Linear interpolation of long-term average spreads
F28: Long-term average spread corresponding to D | G28: =_xlfn.LET(_xlpm.LTASCOLUMN, INDIRECT("T.LTASGov["&G$10&"]"), _xlfn.XLOOKUP(G$14, T.LTASGov[Maturity '[Y']],_xlpm.LTASCOLUMN)) -> -0.0004222064515 | H28: =_xlfn.LET(_xlpm.LTASCOLUMN, INDIRECT("T.LTASGov["&H$10&"]"), _xlfn.XLOOKUP(H$14, T.LTASGov[Maturity '[Y']],_xlpm.LTASCOLUMN)) -> -0.004010377735 | I28: =_xlfn.LET(_xlpm.LTASCOLUMN, INDIRECT("T.LTASGov["&I$10&"]"), _xlfn.XLOOKUP(I$14, T.LTASGov[Maturity '[Y']],_xlpm.LTASCOLUMN)) -> 8.321870166e-05
F29: Long-term average spread corresponding to D+1 | G29: =_xlfn.LET(_xlpm.LTASCOLUMN, INDIRECT("T.LTASGov["&G$10&"]"), _xlfn.XLOOKUP(G$15, T.LTASGov[Maturity '[Y']],_xlpm.LTASCOLUMN)) -> -0.0005202479401 | H29: =_xlfn.LET(_xlpm.LTASCOLUMN, INDIRECT("T.LTASGov["&H$10&"]"), _xlfn.XLOOKUP(H$15, T.LTASGov[Maturity '[Y']],_xlpm.LTASCOLUMN)) -> -0.003496551834 | I29: =_xlfn.LET(_xlpm.LTASCOLUMN, INDIRECT("T.LTASGov["&I$10&"]"), _xlfn.XLOOKUP(I$15, T.LTASGov[Maturity '[Y']],_xlpm.LTASCOLUMN)) -> -0.001476576341
F30: Linear interpolation of LTAS | G30: =G28+(G29-G28)/(G15-G14)*(G13-G14) -> -0.000461423047 | H30: =H28+(H29-H28)/(H15-H14)*(H13-H14) -> -0.003856229965 | I30: -0.001008637829
F32: Risk-corrected market yields
F33: Spread | G33: =G20-G25 -> 0.005595401643 | H33: =H20-H25 -> 0.0004058204141 | I33: 0.02299925225
F34: Risk correction | G34: =_xlfn.LET(_xlpm.SPLUS, MAX(G33, 0), _xlpm.LTASPLUS, MAX(G30, 0), _xlpm.RC, 30% * MIN(_xlpm.SPLUS, _xlpm.LTASPLUS) + 20% * MAX(0, MIN(_xlpm.SPLUS - _xlpm.LTASPLUS, _xlpm.LTASPLUS)) + 15% * MAX(0, _xlpm.SPLUS - 2 * _xlpm.LTASPLUS), MIN(_xlpm.RC, 65% * _xlpm.LTASPLUS)) -> 0 | H34: =_xlfn.LET(_xlpm.SPLUS, MAX(H33, 0), _xlpm.LTASPLUS, MAX(H30, 0), _xlpm.RC, 30% * MIN(_xlpm.SPLUS, _xlpm.LTASPLUS) + 20% * MAX(0, MIN(_xlpm.SPLUS - _xlpm.LTASPLUS, _xlpm.LTASPLUS)) + 15% * MAX(0, _xlpm.SPLUS - 2 * _xlpm.LTASPLUS), MIN(_xlpm.RC, 65% * _xlpm.LTASPLUS)) -> 0 | I34: =_xlfn.LET(_xlpm.SPLUS, MAX(I33, 0), _xlpm.LTASPLUS, MAX(I30, 0), _xlpm.RC, 50% * MIN(_xlpm.SPLUS, _xlpm.LTASPLUS) + 40% * MAX(0, MIN(_xlpm.SPLUS - _xlpm.LTASPLUS, _xlpm.LTASPLUS)) + 30% * MAX(0, _xlpm.SPLUS - 2 * _xlpm.LTASPLUS), MIN(_xlpm.RC, 125% * _xlpm.LTASPLUS)) -> 0
F35: Risk-corrected market yield | G35: =G20-G34 -> 0.02031522702 | H35: =H20-H34 -> 0.01830209959 | I35: 0.0436466416
F37: Model bond market values
F38: Market value market yield model bond | G38: =_xlfn.LET(_xlpm.CF, _xlfn.XLOOKUP(G$10, T.RefPortCurrencyGov[Issuer], T.RefPortCurrencyGov[Yield Cash Flow]), _xlpm.IR, G20, _xlpm.DUR, G13, _xlpm.CF * (1 + _xlpm.IR)^(-_xlpm.DUR)) -> 0.4315160506 | H38: =_xlfn.LET(_xlpm.CF, _xlfn.XLOOKUP(H$10, T.RefPortCurrencyGov[Issuer], T.RefPortCurrencyGov[Yield Cash Flow]), _xlpm.IR, H20, _xlpm.DUR, H13, _xlpm.CF * (1 + _xlpm.IR)^(-_xlpm.DUR)) -> 0.1881823424 | I38: =_xlfn.LET(_xlpm.CF, _xlfn.XLOOKUP(I$10, T.RefPortCurrencyGov[Issuer], T.RefPortCurrencyGov[Yield Cash Flow]), _xlpm.IR, I20, _xlpm.DUR, I13, _xlpm.CF * (1 + _xlpm.IR)^(-_xlpm.DUR)) -> 0.1000396596
F39: Market value risk-free yield model bond | G39: =_xlfn.LET(_xlpm.CF, _xlfn.XLOOKUP(G$10, T.RefPortCurrencyGov[Issuer], T.RefPortCurrencyGov[RFR Cash Flow]), _xlpm.IR, G25, _xlpm.DUR, G13, _xlpm.CF * (1 + _xlpm.IR)^(-_xlpm.DUR)) -> 0.4113863401 | H39: =_xlfn.LET(_xlpm.CF, _xlfn.XLOOKUP(H$10, T.RefPortCurrencyGov[Issuer], T.RefPortCurrencyGov[RFR Cash Flow]), _xlpm.IR, H25, _xlpm.DUR, H13, _xlpm.CF * (1 + _xlpm.IR)^(-_xlpm.DUR)) -> 0.1772847258 | I39: =_xlfn.LET(_xlpm.CF, _xlfn.XLOOKUP(I$10, T.RefPortCurrencyGov[Issuer], T.RefPortCurrencyGov[RFR Cash Flow]), _xlpm.IR, I25, _xlpm.DUR, I13, _xlpm.CF * (1 + _xlpm.IR)^(-_xlpm.DUR)) -> 0.1092783968
F40: Market value risk-corrected yield model bond | G40: =_xlfn.LET(_xlpm.CF, _xlfn.XLOOKUP(G$10, T.RefPortCurrencyGov[Issuer], T.RefPortCurrencyGov[RC Yield Cash Flow]), _xlpm.IR, G35, _xlpm.DUR, G13, _xlpm.CF * (1 + _xlpm.IR)^(-_xlpm.DUR)) -> 0.4249771725 | H40: =_xlfn.LET(_xlpm.CF, _xlfn.XLOOKUP(H$10, T.RefPortCurrencyGov[Issuer], T.RefPortCurrencyGov[RC Yield Cash Flow]), _xlpm.IR, H35, _xlpm.DUR, H13, _xlpm.CF * (1 + _xlpm.IR)^(-_xlpm.DUR)) -> 0.1853307651 | I40: =_xlfn.LET(_xlpm.CF, _xlfn.XLOOKUP(I$10, T.RefPortCurrencyGov[Issuer], T.RefPortCurrencyGov[RC Yield Cash Flow]), _xlpm.IR, I35, _xlpm.DUR, I13, _xlpm.CF * (1 + _xlpm.IR)^(-_xlpm.DUR)) -> 0.09852373184
F42: Portfolio Calculation
F44: Internal rate of return (IRR) calculation | G44: =G10 -> FR | H44: =H10 -> DE | I44: UK | K44: Sum | L44: Obj. Func. | M44: IRR
F45: IRR discounted market yield model bond | G45: =_xlfn.LET(_xlpm.CF, _xlfn.XLOOKUP(G$10, T.RefPortCurrencyGov[Issuer], T.RefPortCurrencyGov[Yield Cash Flow]), _xlpm.IER, $M$45, _xlpm.DUR, G13, _xlpm.CF * (1 + _xlpm.IER)^(-_xlpm.DUR)) -> 0.4250378039 | H45: =_xlfn.LET(_xlpm.CF, _xlfn.XLOOKUP(H$10, T.RefPortCurrencyGov[Issuer], T.RefPortCurrencyGov[Yield Cash Flow]), _xlpm.IER, $M$45, _xlpm.DUR, H13, _xlpm.CF * (1 + _xlpm.IER)^(-_xlpm.DUR)) -> 0.1831114267 | I45: =_xlfn.LET(_xlpm.CF, _xlfn.XLOOKUP(I$10, T.RefPortCurrencyGov[Issuer], T.RefPortCurrencyGov[Yield Cash Flow]), _xlpm.IER, $M$45, _xlpm.DUR, I13, _xlpm.CF * (1 + _xlpm.IER)^(-_xlpm.DUR)) -> 0.1115888219 | K45: =SUM(G45:I45) -> 0.7197380526 | L45: =(SUM(G38:I38)-K45)^2 -> 1.232595164e-32 | M45: 0.02676632376
F46: IRR discounted risk-free yield model bond | G46: =_xlfn.LET(_xlpm.CF, _xlfn.XLOOKUP(G$10, T.RefPortCurrencyGov[Issuer], T.RefPortCurrencyGov[RFR Cash Flow]), _xlpm.IER, $M$46, _xlpm.DUR, G13, _xlpm.CF * (1 + _xlpm.IER)^(-_xlpm.DUR)) -> 0.4087699636 | H46: =_xlfn.LET(_xlpm.CF, _xlfn.XLOOKUP(H$10, T.RefPortCurrencyGov[Issuer], T.RefPortCurrencyGov[RFR Cash Flow]), _xlpm.IER, $M$46, _xlpm.DUR, H13, _xlpm.CF * (1 + _xlpm.IER)^(-_xlpm.DUR)) -> 0.1775581876 | I46: =_xlfn.LET(_xlpm.CF, _xlfn.XLOOKUP(I$10, T.RefPortCurrencyGov[Issuer], T.RefPortCurrencyGov[RFR Cash Flow]), _xlpm.IER, $M$46, _xlpm.DUR, I13, _xlpm.CF * (1 + _xlpm.IER)^(-_xlpm.DUR)) -> 0.1116213114 | K46: =SUM(G46:I46) -> 0.6979494626 | L46: =(SUM(G39:I39)-K46)^2 -> 0 | M46: 0.01742096715
F47: IRR discounted risk-corrected yield model bond | G47: =_xlfn.LET(_xlpm.CF, _xlfn.XLOOKUP(G$10, T.RefPortCurrencyGov[Issuer], T.RefPortCurrencyGov[RC Yield Cash Flow]), _xlpm.IER, $M$47, _xlpm.DUR, G13, _xlpm.CF * (1 + _xlpm.IER)^(-_xlpm.DUR)) -> 0.4185970924 | H47: =_xlfn.LET(_xlpm.CF, _xlfn.XLOOKUP(H$10, T.RefPortCurrencyGov[Issuer], T.RefPortCurrencyGov[RC Yield Cash Flow]), _xlpm.IER, $M$47, _xlpm.DUR, H13, _xlpm.CF * (1 + _xlpm.IER)^(-_xlpm.DUR)) -> 0.1803366903 | I47: =_xlfn.LET(_xlpm.CF, _xlfn.XLOOKUP(I$10, T.RefPortCurrencyGov[Issuer], T.RefPortCurrencyGov[RC Yield Cash Flow]), _xlpm.IER, $M$47, _xlpm.DUR, I13, _xlpm.CF * (1 + _xlpm.IER)^(-_xlpm.DUR)) -> 0.1098978867 | K47: =SUM(G47:I47) -> 0.7088316694 | L47: =(SUM(G40:I40)-K47)^2 -> 1.232595164e-32 | M47: 0.02676632376
F49: Portfolio spread and risk correction | G49: Total
F50: Portfolio spread | G50: =V.IER_Yield_Gov_Cur-V.IER_RFR_Gov_Cur -> 0.009345356604
F51: Portfolio risk correction | G51: =V.IER_Yield_Gov_Cur-V.IER_RCYield_Gov_Cur -> 0

Sheet S&RC Corp Currency
U3: ©EIOPA, 2026.
F6: Currency RCS: Corporate Bonds
F8: Model Bond Calculations | R8: RFR TD
F10: Issuer | G10: Financials CQS 0 | H10: Financials CQS 1 | I10: Financials CQS 2 | J10: Financials CQS 3 | K10: Non-Financials CQS 0 | L10: Non-Financials CQS 1 | M10: Non-Financials CQS 2 | N10: Non-Financials CQS 3 | O10: Non-Financials CQS 4 | P10: Non-Financials CQS 5
F11: Issuer currency | G11: GBP | H11: GBP | I11: GBP | J11: GBP | K11: GBP | L11: GBP | M11: GBP | N11: GBP | O11: GBP | P11: GBP
F12: Relative market value | G12: =_xlfn.XLOOKUP(G$10, T.RefPortCurrencyCorp[Issuer], T.RefPortCurrencyCorp[Composition]) -> 0.21 | H12: =_xlfn.XLOOKUP(H$10, T.RefPortCurrencyCorp[Issuer], T.RefPortCurrencyCorp[Composition]) -> 0.06 | I12: =_xlfn.XLOOKUP(I$10, T.RefPortCurrencyCorp[Issuer], T.RefPortCurrencyCorp[Composition]) -> 0.17 | J12: =_xlfn.XLOOKUP(J$10, T.RefPortCurrencyCorp[Issuer], T.RefPortCurrencyCorp[Composition]) -> 0.07 | K12: =_xlfn.XLOOKUP(K$10, T.RefPortCurrencyCorp[Issuer], T.RefPortCurrencyCorp[Composition]) -> 0.06 | L12: =_xlfn.XLOOKUP(L$10, T.RefPortCurrencyCorp[Issuer], T.RefPortCurrencyCorp[Composition]) -> 0.05 | M12: =_xlfn.XLOOKUP(M$10, T.RefPortCurrencyCorp[Issuer], T.RefPortCurrencyCorp[Composition]) -> 0.15 | N12: =_xlfn.XLOOKUP(N$10, T.RefPortCurrencyCorp[Issuer], T.RefPortCurrencyCorp[Composition]) -> 0.21 | O12: =_xlfn.XLOOKUP(O$10, T.RefPortCurrencyCorp[Issuer], T.RefPortCurrencyCorp[Composition]) -> 0.01 | P12: =_xlfn.XLOOKUP(P$10, T.RefPortCurrencyCorp[Issuer], T.RefPortCurrencyCorp[Composition]) -> 0.01
F13: Duration [Y] | G13: =_xlfn.XLOOKUP(G$10, T.RefPortCurrencyCorp[Issuer], T.RefPortCurrencyCorp[Duration '[Y']]) -> 2.6 | H13: =_xlfn.XLOOKUP(H$10, T.RefPortCurrencyCorp[Issuer], T.RefPortCurrencyCorp[Duration '[Y']]) -> 1.9 | I13: =_xlfn.XLOOKUP(I$10, T.RefPortCurrencyCorp[Issuer], T.RefPortCurrencyCorp[Duration '[Y']]) -> 3.2 | J13: =_xlfn.XLOOKUP(J$10, T.RefPortCurrencyCorp[Issuer], T.RefPortCurrencyCorp[Duration '[Y']]) -> 4.3 | K13: =_xlfn.XLOOKUP(K$10, T.RefPortCurrencyCorp[Issuer], T.RefPortCurrencyCorp[Duration '[Y']]) -> 4 | L13: =_xlfn.XLOOKUP(L$10, T.RefPortCurrencyCorp[Issuer], T.RefPortCurrencyCorp[Duration '[Y']]) -> 4.6 | M13: =_xlfn.XLOOKUP(M$10, T.RefPortCurrencyCorp[Issuer], T.RefPortCurrencyCorp[Duration '[Y']]) -> 5.5 | N13: =_xlfn.XLOOKUP(N$10, T.RefPortCurrencyCorp[Issuer], T.RefPortCurrencyCorp[Duration '[Y']]) -> 5.3 | O13: =_xlfn.XLOOKUP(O$10, T.RefPortCurrencyCorp[Issuer], T.RefPortCurrencyCorp[Duration '[Y']]) -> 3.1 | P13: =_xlfn.XLOOKUP(P$10, T.RefPortCurrencyCorp[Issuer], T.RefPortCurrencyCorp[Duration '[Y']]) -> 1.5
F14: Integer D less than or equal to the duration [Y] | G14: =INT(G$13) -> 2 | H14: =INT(H$13) -> 1 | I14: 3 | J14: 4 | K14: 4 | L14: 4 | M14: 5 | N14: 5 | O14: 3 | P14: 1
F15: Integer D+1 [Y] | G15: =G14+1 -> 3 | H15: =H14+1 -> 2 | I15: 4 | J15: 5 | K15: 5 | L15: 5 | M15: 6 | N15: 6 | O15: 4 | P15: =P14+1 -> 2
F17: Linear interpolation of market yields before risk correction
F18: Longest available duration below the component duration [Y] | G18: =ROUND('Corp Data'!G13, 1) -> 1.9 | H18: =ROUND('Corp Data'!K13, 1) -> 1.9 | I18: =ROUND('Corp Data'!O13, 1) -> 1.8 | J18: =ROUND('Corp Data'!G24, 1) -> 3.8 | K18: =ROUND('Corp Data'!G35, 1) -> 3.8 | L18: =ROUND('Corp Data'!K35, 1) -> 3.8 | M18: =ROUND('Corp Data'!O35, 1) -> 3.6 | N18: =ROUND('Corp Data'!G46, 1) -> 5.1 | O18: =ROUND('Corp Data'!K44, 1) -> 3 | P18: =ROUND('Corp Data'!O44, 1) -> 2.1
F19: Yield for the longest available duration below the component duration | G19: ='Corp Data'!H13 -> 0.01940473735 | H19: ='Corp Data'!L13 -> 0.02282910277 | I19: ='Corp Data'!P13 -> 0.024570515 | J19: ='Corp Data'!H24 -> 0.03232133767 | K19: ='Corp Data'!H35 -> 0.02176022291 | L19: ='Corp Data'!L35 -> 0.02560026225 | M19: ='Corp Data'!P35 -> 0.02719612863 | N19: ='Corp Data'!H46 -> 0.03401032644 | O19: ='Corp Data'!L44 -> 0.04403809825 | P19: ='Corp Data'!P44 -> 0.06148741785
F20: Shortest available duration above the component duration [Y] | G20: =ROUND('Corp Data'!G14, 1) -> 3.7 | H20: =ROUND('Corp Data'!K14, 1) -> 3.7 | I20: =ROUND('Corp Data'!O14, 1) -> 3.8 | J20: =ROUND('Corp Data'!G25, 1) -> 5.2 | K20: =ROUND('Corp Data'!G36, 1) -> 5.6 | L20: =ROUND('Corp Data'!K36, 1) -> 5.6 | M20: =ROUND('Corp Data'!O36, 1) -> 5.6 | N20: =ROUND('Corp Data'!G47, 1) -> 7 | O20: =ROUND('Corp Data'!K44, 1) -> 3 | P20: =ROUND('Corp Data'!O44, 1) -> 2.1
F21: Yield for the shortest available duration above the component duration | G21: ='Corp Data'!H14 -> 0.0227500176 | H21: ='Corp Data'!L14 -> 0.02676472658 | I21: ='Corp Data'!P14 -> 0.02790158523 | J21: ='Corp Data'!H25 -> 0.03525863138 | K21: ='Corp Data'!H36 -> 0.0243256572 | L21: ='Corp Data'!L36 -> 0.02861842024 | M21: ='Corp Data'!P36 -> 0.03121200868 | N21: ='Corp Data'!H47 -> 0.03618536332 | O21: ='Corp Data'!L44 -> 0.04403809825 | P21: ='Corp Data'!P44 -> 0.06148741785
F22: Linear interpolation of market yields before risk correction | G22: =G19+(G21-G19)/(G20-G18)*(G13-G18) -> 0.02070567967 | H22: =H19 -> 0.02282910277 | I22: =I19+(I21-I19)/(I20-I18)*(I13-I18) -> 0.02690226416 | J22: 0.03337037114 | K22: 0.02204527116 | L22: 0.0269416658 | M22: 0.03101121468 | N22: 0.03423927769 | O22: =O21 -> 0.04403809825 | P22: =P21 -> 0.06148741785
F24: Linear interpolation of risk-free rates
F25: Basic risk-free rate corresponding to D | G25: =_xlfn.XLOOKUP(G$14, T.RFR[Maturity '[Y']], T.RFR[GBP]) -> 0.01821687922 | H25: =_xlfn.XLOOKUP(H$14, T.RFR[Maturity '[Y']], T.RFR[GBP]) -> 0.01981534233 | I25: =_xlfn.XLOOKUP(I$14, T.RFR[Maturity '[Y']], T.RFR[GBP]) -> 0.01938535624 | J25: =_xlfn.XLOOKUP(J$14, T.RFR[Maturity '[Y']], T.RFR[GBP]) -> 0.01851301381 | K25: =_xlfn.XLOOKUP(K$14, T.RFR[Maturity '[Y']], T.RFR[GBP]) -> 0.01851301381 | L25: =_xlfn.XLOOKUP(L$14, T.RFR[Maturity '[Y']], T.RFR[GBP]) -> 0.01851301381 | M25: =_xlfn.XLOOKUP(M$14, T.RFR[Maturity '[Y']], T.RFR[GBP]) -> 0.01892195156 | N25: =_xlfn.XLOOKUP(N$14, T.RFR[Maturity '[Y']], T.RFR[GBP]) -> 0.01892195156 | O25: =_xlfn.XLOOKUP(O$14, T.RFR[Maturity '[Y']], T.RFR[GBP]) -> 0.01938535624 | P25: =_xlfn.XLOOKUP(P$14, T.RFR[Maturity '[Y']], T.RFR[GBP]) -> 0.01981534233
F26: Basic risk-free rate corresponding to D+1 | G26: =_xlfn.XLOOKUP(G$15, T.RFR[Maturity '[Y']], T.RFR[GBP]) -> 0.01938535624 | H26: =_xlfn.XLOOKUP(H$15, T.RFR[Maturity '[Y']], T.RFR[GBP]) -> 0.01821687922 | I26: =_xlfn.XLOOKUP(I$15, T.RFR[Maturity '[Y']], T.RFR[GBP]) -> 0.01851301381 | J26: =_xlfn.XLOOKUP(J$15, T.RFR[Maturity '[Y']], T.RFR[GBP]) -> 0.01892195156 | K26: =_xlfn.XLOOKUP(K$15, T.RFR[Maturity '[Y']], T.RFR[GBP]) -> 0.01892195156 | L26: =_xlfn.XLOOKUP(L$15, T.RFR[Maturity '[Y']], T.RFR[GBP]) -> 0.01892195156 | M26: =_xlfn.XLOOKUP(M$15, T.RFR[Maturity '[Y']], T.RFR[GBP]) -> 0.02068612671 | N26: =_xlfn.XLOOKUP(N$15, T.RFR[Maturity '[Y']], T.RFR[GBP]) -> 0.02068612671 | O26: =_xlfn.XLOOKUP(O$15, T.RFR[Maturity '[Y']], T.RFR[GBP]) -> 0.01851301381 | P26: =_xlfn.XLOOKUP(P$15, T.RFR[Maturity '[Y']], T.RFR[GBP]) -> 0.01821687922
F27: Linear interpolation of basic risk-free rate | G27: =G25+(G26-G25)/(G15-G14) * (G$13-G14) -> 0.01891796543 | H27: 0.01837672553 | I27: 0.01921088776 | J27: 0.01863569513 | K27: 0.01851301381 | L27: 0.01875837646 | M27: 0.01980403913 | N27: 0.0194512041 | O27: 0.019298122 | P27: =P25+(P26-P25)/(P15-P14) * (P$13-P14) -> 0.01901611078
F29: Linear interpolation of long-term average spreads
F30: Long-term average spread corresponding to D | G30: =_xlfn.XLOOKUP(G$14, T.LTASCorp_Finan[Maturity '[Y']], T.LTASCorp_Finan[CQS 0]) -> 0.001954710944 | H30: =_xlfn.XLOOKUP(H$14, T.LTASCorp_Finan[Maturity '[Y']], T.LTASCorp_Finan[CQS 1]) -> 0.006828200287 | I30: =_xlfn.XLOOKUP(I$14, T.LTASCorp_Finan[Maturity '[Y']], T.LTASCorp_Finan[CQS 2]) -> 0.01436898991 | J30: =_xlfn.XLOOKUP(J$14, T.LTASCorp_Finan[Maturity '[Y']], T.LTASCorp_Finan[CQS 3]) -> 0.03244379499 | K30: =_xlfn.XLOOKUP(K$14, T.LTASCorp_NonFinan[Maturity '[Y']], T.LTASCorp_NonFinan[CQS 0]) -> -0.0008178236544 | L30: =_xlfn.XLOOKUP(L$14, T.LTASCorp_NonFinan[Maturity '[Y']], T.LTASCorp_NonFinan[CQS 1]) -> 0.003797642359 | M30: =_xlfn.XLOOKUP(M$14, T.LTASCorp_NonFinan[Maturity '[Y']], T.LTASCorp_NonFinan[CQS 2]) -> 0.00821678227 | N30: =_xlfn.XLOOKUP(N$14, T.LTASCorp_NonFinan[Maturity '[Y']], T.LTASCorp_NonFinan[CQS 3]) -> 0.01636641126 | O30: =_xlfn.XLOOKUP(O$14, T.LTASCorp_NonFinan[Maturity '[Y']], T.LTASCorp_NonFinan[CQS 4]) -> 0.04705018602 | P30: =_xlfn.XLOOKUP(P$14, T.LTASCorp_NonFinan[Maturity '[Y']], T.LTASCorp_NonFinan[CQS 5]) -> 0.07455354209
F31: Long-term average spread corresponding to D+1 | G31: =_xlfn.XLOOKUP(G$15, T.LTASCorp_Finan[Maturity '[Y']], T.LTASCorp_Finan[CQS 0]) -> 0.002355118249 | H31: =_xlfn.XLOOKUP(H$15, T.LTASCorp_Finan[Maturity '[Y']], T.LTASCorp_Finan[CQS 1]) -> 0.006828200287 | I31: =_xlfn.XLOOKUP(I$15, T.LTASCorp_Finan[Maturity '[Y']], T.LTASCorp_Finan[CQS 2]) -> 0.0151142393 | J31: =_xlfn.XLOOKUP(J$15, T.LTASCorp_Finan[Maturity '[Y']], T.LTASCorp_Finan[CQS 3]) -> 0.030297683 | K31: =_xlfn.XLOOKUP(K$15, T.LTASCorp_NonFinan[Maturity '[Y']], T.LTASCorp_NonFinan[CQS 0]) -> -0.0001059327017 | L31: =_xlfn.XLOOKUP(L$15, T.LTASCorp_NonFinan[Maturity '[Y']], T.LTASCorp_NonFinan[CQS 1]) -> 0.004621094989 | M31: =_xlfn.XLOOKUP(M$15, T.LTASCorp_NonFinan[Maturity '[Y']], T.LTASCorp_NonFinan[CQS 2]) -> 0.009455530701 | N31: =_xlfn.XLOOKUP(N$15, T.LTASCorp_NonFinan[Maturity '[Y']], T.LTASCorp_NonFinan[CQS 3]) -> 0.0168599613 | O31: =_xlfn.XLOOKUP(O$15, T.LTASCorp_NonFinan[Maturity '[Y']], T.LTASCorp_NonFinan[CQS 4]) -> 0.04623992246 | P31: =_xlfn.XLOOKUP(P$15, T.LTASCorp_NonFinan[Maturity '[Y']], T.LTASCorp_NonFinan[CQS 5]) -> 0.07455354209
F32: Linear interpolation of LTAS | G32: =G30+(G31-G30)/(G15-G14)*(G13-G14) -> 0.002194955327 | H32: 0.006828200287 | I32: 0.01451803979 | J32: 0.03179996139 | K32: -0.0008178236544 | L32: 0.004291713937 | M32: 0.008836156486 | N32: 0.01651447627 | O32: 0.04696915967 | P32: =P30+(P31-P30)/(P15-P14)*(P13-P14) -> 0.07455354209
F34: Risk-corrected market yields
F35: Spread | G35: =G22-G27 -> 0.001787714236 | H35: =H22-H27 -> 0.004452377239 | I35: 0.007691376401 | J35: 0.014734676 | K35: 0.003532257359 | L35: 0.008183289341 | M35: 0.01120717555 | N35: 0.01478807359 | O35: 0.02473997625 | P35: =P22-P27 -> 0.04247130707
F36: Risk correction | G36: =_xlfn.LET(_xlpm.SPLUS, MAX(G35, 0), _xlpm.LTASPLUS, MAX(G32, 0), _xlpm.RC, 50% * MIN(_xlpm.SPLUS, _xlpm.LTASPLUS) + 40% * MAX(0, MIN(_xlpm.SPLUS - _xlpm.LTASPLUS, _xlpm.LTASPLUS)) + 30% * MAX(0, _xlpm.SPLUS - 2 * _xlpm.LTASPLUS), MIN(_xlpm.RC, 125% * _xlpm.LTASPLUS)) -> 0.0008938571181 | H36: =_xlfn.LET(_xlpm.SPLUS, MAX(H35, 0), _xlpm.LTASPLUS, MAX(H32, 0), _xlpm.RC, 50% * MIN(_xlpm.SPLUS, _xlpm.LTASPLUS) + 40% * MAX(0, MIN(_xlpm.SPLUS - _xlpm.LTASPLUS, _xlpm.LTASPLUS)) + 30% * MAX(0, _xlpm.SPLUS - 2 * _xlpm.LTASPLUS), MIN(_xlpm.RC, 125% * _xlpm.LTASPLUS)) -> 0.002226188619 | I36: 0.003845688201 | J36: 0.007367338002 | K36: 0 | L36: 0.00370248713 | M36: 0.005366485867 | N36: 0.007394036793 | O36: 0.01236998813 | P36: =_xlfn.LET(_xlpm.SPLUS, MAX(P35, 0), _xlpm.LTASPLUS, MAX(P32, 0), _xlpm.RC, 50% * MIN(_xlpm.SPLUS, _xlpm.LTASPLUS) + 40% * MAX(0, MIN(_xlpm.SPLUS - _xlpm.LTASPLUS, _xlpm.LTASPLUS)) + 30% * MAX(0, _xlpm.SPLUS - 2 * _xlpm.LTASPLUS), MIN(_xlpm.RC, 125% * _xlpm.LTASPLUS)) -> 0.02123565354
F37: Risk-corrected market yield | G37: =G22-G36 -> 0.01981182255 | H37: =H22-H36 -> 0.02060291415 | I37: 0.02305657596 | J37: 0.02600303313 | K37: 0.02204527116 | L37: 0.02323917867 | M37: 0.02564472881 | N37: 0.0268452409 | O37: 0.03166811013 | P37: =P22-P36 -> 0.04025176431
F39: Model bond market values
F40: Market value market yield model bond | G40: =_xlfn.LET(_xlpm.CF, _xlfn.XLOOKUP(G$10, T.RefPortCurrencyCorp[Issuer], T.RefPortCurrencyCorp[Yield Cash Flow]), _xlpm.IR, G22, _xlpm.DUR, G13, _xlpm.CF * (1 + _xlpm.IR)^(-_xlpm.DUR)) -> 0.1626491231 | H40: =_xlfn.LET(_xlpm.CF, _xlfn.XLOOKUP(H$10, T.RefPortCurrencyCorp[Issuer], T.RefPortCurrencyCorp[Yield Cash Flow]), _xlpm.IR, H22, _xlpm.DUR, H13, _xlpm.CF * (1 + _xlpm.IR)^(-_xlpm.DUR)) -> 0.1363120252 | I40: =_xlfn.LET(_xlpm.CF, _xlfn.XLOOKUP(I$10, T.RefPortCurrencyCorp[Issuer], T.RefPortCurrencyCorp[Yield Cash Flow]), _xlpm.IR, I22, _xlpm.DUR, I13, _xlpm.CF * (1 + _xlpm.IR)^(-_xlpm.DUR)) -> 0.3145994242 | J40: =_xlfn.LET(_xlpm.CF, _xlfn.XLOOKUP(J$10, T.RefPortCurrencyCorp[Issuer], T.RefPortCurrencyCorp[Yield Cash Flow]), _xlpm.IR, J22, _xlpm.DUR, J13, _xlpm.CF * (1 + _xlpm.IR)^(-_xlpm.DUR)) -> 0.1308280767 | K40: =_xlfn.LET(_xlpm.CF, _xlfn.XLOOKUP(K$10, T.RefPortCurrencyCorp[Issuer], T.RefPortCurrencyCorp[Yield Cash Flow]), _xlpm.IR, K22, _xlpm.DUR, K13, _xlpm.CF * (1 + _xlpm.IR)^(-_xlpm.DUR)) -> 0.04719995882 | L40: =_xlfn.LET(_xlpm.CF, _xlfn.XLOOKUP(L$10, T.RefPortCurrencyCorp[Issuer], T.RefPortCurrencyCorp[Yield Cash Flow]), _xlpm.IR, L22, _xlpm.DUR, L13, _xlpm.CF * (1 + _xlpm.IR)^(-_xlpm.DUR)) -> 0.04478963137 | M40: =_xlfn.LET(_xlpm.CF, _xlfn.XLOOKUP(M$10, T.RefPortCurrencyCorp[Issuer], T.RefPortCurrencyCorp[Yield Cash Flow]), _xlpm.IR, M22, _xlpm.DUR, M13, _xlpm.CF * (1 + _xlpm.IR)^(-_xlpm.DUR)) -> 0.08984744384 | N40: =_xlfn.LET(_xlpm.CF, _xlfn.XLOOKUP(N$10, T.RefPortCurrencyCorp[Issuer], T.RefPortCurrencyCorp[Yield Cash Flow]), _xlpm.IR, N22, _xlpm.DUR, N13, _xlpm.CF * (1 + _xlpm.IR)^(-_xlpm.DUR)) -> 0.1262916478 | O40: =_xlfn.LET(_xlpm.CF, _xlfn.XLOOKUP(O$10, T.RefPortCurrencyCorp[Issuer], T.RefPortCurrencyCorp[Yield Cash Flow]), _xlpm.IR, O22, _xlpm.DUR, O13, _xlpm.CF * (1 + _xlpm.IR)^(-_xlpm.DUR)) -> 0.01014464935 | P40: =_xlfn.LET(_xlpm.CF, _xlfn.XLOOKUP(P$10, T.RefPortCurrencyCorp[Issuer], T.RefPortCurrencyCorp[Yield Cash Flow]), _xlpm.IR, P22, _xlpm.DUR, P13, _xlpm.CF * (1 + _xlpm.IR)^(-_xlpm.DUR)) -> 0.01060194238
F41: Market value risk-free yield model bond | G41: =_xlfn.LET(_xlpm.CF, _xlfn.XLOOKUP(G$10, T.RefPortCurrencyCorp[Issuer], T.RefPortCurrencyCorp[RFR Cash Flow]), _xlpm.IR, G27, _xlpm.DUR, G13, _xlpm.CF * (1 + _xlpm.IR)^(-_xlpm.DUR)) -> 0.1587029678 | H41: =_xlfn.LET(_xlpm.CF, _xlfn.XLOOKUP(H$10, T.RefPortCurrencyCorp[Issuer], T.RefPortCurrencyCorp[RFR Cash Flow]), _xlpm.IR, H27, _xlpm.DUR, H13, _xlpm.CF * (1 + _xlpm.IR)^(-_xlpm.DUR)) -> 0.1316947028 | I41: =_xlfn.LET(_xlpm.CF, _xlfn.XLOOKUP(I$10, T.RefPortCurrencyCorp[Issuer], T.RefPortCurrencyCorp[RFR Cash Flow]), _xlpm.IR, I27, _xlpm.DUR, I13, _xlpm.CF * (1 + _xlpm.IR)^(-_xlpm.DUR)) -> 0.3051388873 | J41: =_xlfn.LET(_xlpm.CF, _xlfn.XLOOKUP(J$10, T.RefPortCurrencyCorp[Issuer], T.RefPortCurrencyCorp[RFR Cash Flow]), _xlpm.IR, J27, _xlpm.DUR, J13, _xlpm.CF * (1 + _xlpm.IR)^(-_xlpm.DUR)) -> 0.1315293007 | K41: =_xlfn.LET(_xlpm.CF, _xlfn.XLOOKUP(K$10, T.RefPortCurrencyCorp[Issuer], T.RefPortCurrencyCorp[RFR Cash Flow]), _xlpm.IR, K27, _xlpm.DUR, K13, _xlpm.CF * (1 + _xlpm.IR)^(-_xlpm.DUR)) -> 0.04657955776 | L41: =_xlfn.LET(_xlpm.CF, _xlfn.XLOOKUP(L$10, T.RefPortCurrencyCorp[Issuer], T.RefPortCurrencyCorp[RFR Cash Flow]), _xlpm.IR, L27, _xlpm.DUR, L13, _xlpm.CF * (1 + _xlpm.IR)^(-_xlpm.DUR)) -> 0.04407753506 | M41: =_xlfn.LET(_xlpm.CF, _xlfn.XLOOKUP(M$10, T.RefPortCurrencyCorp[Issuer], T.RefPortCurrencyCorp[RFR Cash Flow]), _xlpm.IR, M27, _xlpm.DUR, M13, _xlpm.CF * (1 + _xlpm.IR)^(-_xlpm.DUR)) -> 0.09179386389 | N41: =_xlfn.LET(_xlpm.CF, _xlfn.XLOOKUP(N$10, T.RefPortCurrencyCorp[Issuer], T.RefPortCurrencyCorp[RFR Cash Flow]), _xlpm.IR, N27, _xlpm.DUR, N13, _xlpm.CF * (1 + _xlpm.IR)^(-_xlpm.DUR)) -> 0.1305753033 | O41: =_xlfn.LET(_xlpm.CF, _xlfn.XLOOKUP(O$10, T.RefPortCurrencyCorp[Issuer], T.RefPortCurrencyCorp[RFR Cash Flow]), _xlpm.IR, O27, _xlpm.DUR, O13, _xlpm.CF * (1 + _xlpm.IR)^(-_xlpm.DUR)) -> 0.01019521792 | P41: =_xlfn.LET(_xlpm.CF, _xlfn.XLOOKUP(P$10, T.RefPortCurrencyCorp[Issuer], T.RefPortCurrencyCorp[RFR Cash Flow]), _xlpm.IR, P27, _xlpm.DUR, P13, _xlpm.CF * (1 + _xlpm.IR)^(-_xlpm.DUR)) -> 0.01051619746
F42: Market value risk-corrected yield model bond | G42: =_xlfn.LET(_xlpm.CF, _xlfn.XLOOKUP(G$10, T.RefPortCurrencyCorp[Issuer], T.RefPortCurrencyCorp[RC Yield Cash Flow]), _xlpm.IR, G37, _xlpm.DUR, G13, _xlpm.CF * (1 + _xlpm.IR)^(-_xlpm.DUR)) -> 0.160731467 | H42: =_xlfn.LET(_xlpm.CF, _xlfn.XLOOKUP(H$10, T.RefPortCurrencyCorp[Issuer], T.RefPortCurrencyCorp[RC Yield Cash Flow]), _xlpm.IR, H37, _xlpm.DUR, H13, _xlpm.CF * (1 + _xlpm.IR)^(-_xlpm.DUR)) -> 0.1340035714 | I42: =_xlfn.LET(_xlpm.CF, _xlfn.XLOOKUP(I$10, T.RefPortCurrencyCorp[Issuer], T.RefPortCurrencyCorp[RC Yield Cash Flow]), _xlpm.IR, I37, _xlpm.DUR, I13, _xlpm.CF * (1 + _xlpm.IR)^(-_xlpm.DUR)) -> 0.3098495994 | J42: =_xlfn.LET(_xlpm.CF, _xlfn.XLOOKUP(J$10, T.RefPortCurrencyCorp[Issuer], T.RefPortCurrencyCorp[RC Yield Cash Flow]), _xlpm.IR, J37, _xlpm.DUR, J13, _xlpm.CF * (1 + _xlpm.IR)^(-_xlpm.DUR)) -> 0.1311764034 | K42: =_xlfn.LET(_xlpm.CF, _xlfn.XLOOKUP(K$10, T.RefPortCurrencyCorp[Issuer], T.RefPortCurrencyCorp[RC Yield Cash Flow]), _xlpm.IR, K37, _xlpm.DUR, K13, _xlpm.CF * (1 + _xlpm.IR)^(-_xlpm.DUR)) -> 0.04680811905 | L42: =_xlfn.LET(_xlpm.CF, _xlfn.XLOOKUP(L$10, T.RefPortCurrencyCorp[Issuer], T.RefPortCurrencyCorp[RC Yield Cash Flow]), _xlpm.IR, L37, _xlpm.DUR, L13, _xlpm.CF * (1 + _xlpm.IR)^(-_xlpm.DUR)) -> 0.04460562109 | M42: =_xlfn.LET(_xlpm.CF, _xlfn.XLOOKUP(M$10, T.RefPortCurrencyCorp[Issuer], T.RefPortCurrencyCorp[RC Yield Cash Flow]), _xlpm.IR, M37, _xlpm.DUR, M13, _xlpm.CF * (1 + _xlpm.IR)^(-_xlpm.DUR)) -> 0.09116264355 | N42: =_xlfn.LET(_xlpm.CF, _xlfn.XLOOKUP(N$10, T.RefPortCurrencyCorp[Issuer], T.RefPortCurrencyCorp[RC Yield Cash Flow]), _xlpm.IR, N37, _xlpm.DUR, N13, _xlpm.CF * (1 + _xlpm.IR)^(-_xlpm.DUR)) -> 0.1290778137 | O42: =_xlfn.LET(_xlpm.CF, _xlfn.XLOOKUP(O$10, T.RefPortCurrencyCorp[Issuer], T.RefPortCurrencyCorp[RC Yield Cash Flow]), _xlpm.IR, O37, _xlpm.DUR, O13, _xlpm.CF * (1 + _xlpm.IR)^(-_xlpm.DUR)) -> 0.01028438585 | P42: =_xlfn.LET(_xlpm.CF, _xlfn.XLOOKUP(P$10, T.RefPortCurrencyCorp[Issuer], T.RefPortCurrencyCorp[RC Yield Cash Flow]), _xlpm.IR, P37, _xlpm.DUR, P13, _xlpm.CF * (1 + _xlpm.IR)^(-_xlpm.DUR)) -> 0.01067688807
F44: Portfolio Calculation
F46: Internal rate of return (IRR) calculation | G46: =G10 -> Financials CQS 0 | H46: =H10 -> Financials CQS 1 | I46: Financials CQS 2 | J46: Financials CQS 3 | K46: Non-Financials CQS 0 | L46: Non-Financials CQS 1 | M46: Non-Financials CQS 2 | N46: Non-Financials CQS 3 | O46: Non-Financials CQS 4 | P46: =P10 -> Non-Financials CQS 5 | R46: Sum | S46: Obj. Func. | T46: IRR
F47: IRR discounted market yield model bond | G47: =_xlfn.LET(_xlpm.CF, _xlfn.XLOOKUP(G$10, T.RefPortCurrencyCorp[Issuer], T.RefPortCurrencyCorp[Yield Cash Flow]), _xlpm.IER,$T$47, _xlpm.DUR, G13, _xlpm.CF * (1 + _xlpm.IER)^(-_xlpm.DUR)) -> 0.1593868987 | H47: =_xlfn.LET(_xlpm.CF, _xlfn.XLOOKUP(H$10, T.RefPortCurrencyCorp[Issuer], T.RefPortCurrencyCorp[Yield Cash Flow]), _xlpm.IER,$T$47, _xlpm.DUR, H13, _xlpm.CF * (1 + _xlpm.IER)^(-_xlpm.DUR)) -> 0.1348400455 | I47: =_xlfn.LET(_xlpm.CF, _xlfn.XLOOKUP(I$10, T.RefPortCurrencyCorp[Issuer], T.RefPortCurrencyCorp[Yield Cash Flow]), _xlpm.IER,$T$47, _xlpm.DUR, I13, _xlpm.CF * (1 + _xlpm.IER)^(-_xlpm.DUR)) -> 0.3128525583 | J47: =_xlfn.LET(_xlpm.CF, _xlfn.XLOOKUP(J$10, T.RefPortCurrencyCorp[Issuer], T.RefPortCurrencyCorp[Yield Cash Flow]), _xlpm.IER,$T$47, _xlpm.DUR, J13, _xlpm.CF * (1 + _xlpm.IER)^(-_xlpm.DUR)) -> 0.133406542 | K47: =_xlfn.LET(_xlpm.CF, _xlfn.XLOOKUP(K$10, T.RefPortCurrencyCorp[Issuer], T.RefPortCurrencyCorp[Yield Cash Flow]), _xlpm.IER,$T$47, _xlpm.DUR, K13, _xlpm.CF * (1 + _xlpm.IER)^(-_xlpm.DUR)) -> 0.04599206832 | L47: =_xlfn.LET(_xlpm.CF, _xlfn.XLOOKUP(L$10, T.RefPortCurrencyCorp[Issuer], T.RefPortCurrencyCorp[Yield Cash Flow]), _xlpm.IER,$T$47, _xlpm.DUR, L13, _xlpm.CF * (1 + _xlpm.IER)^(-_xlpm.DUR)) -> 0.04444039992 | M47: =_xlfn.LET(_xlpm.CF, _xlfn.XLOOKUP(M$10, T.RefPortCurrencyCorp[Issuer], T.RefPortCurrencyCorp[Yield Cash Flow]), _xlpm.IER,$T$47, _xlpm.DUR, M13, _xlpm.CF * (1 + _xlpm.IER)^(-_xlpm.DUR)) -> 0.09096785434 | N47: =_xlfn.LET(_xlpm.CF, _xlfn.XLOOKUP(N$10, T.RefPortCurrencyCorp[Issuer], T.RefPortCurrencyCorp[Yield Cash Flow]), _xlpm.IER,$T$47, _xlpm.DUR, N13, _xlpm.CF * (1 + _xlpm.IER)^(-_xlpm.DUR)) -> 0.1299441158 | O47: =_xlfn.LET(_xlpm.CF, _xlfn.XLOOKUP(O$10, T.RefPortCurrencyCorp[Issuer], T.RefPortCurrencyCorp[Yield Cash Flow]), _xlpm.IER,$T$47, _xlpm.DUR, O13, _xlpm.CF * (1 + _xlpm.IER)^(-_xlpm.DUR)) -> 0.01062123032 | P47: =_xlfn.LET(_xlpm.CF, _xlfn.XLOOKUP(P$10, T.RefPortCurrencyCorp[Issuer], T.RefPortCurrencyCorp[Yield Cash Flow]), _xlpm.IER,$T$47, _xlpm.DUR, P13, _xlpm.CF * (1 + _xlpm.IER)^(-_xlpm.DUR)) -> 0.01111297945 | R47: =SUM(G47:P47) -> 1.073564693 | S47: =(SUM(G40:P40)-R47)^2 -> 9.046247132e-08 | T47: 0.02869067472
F48: IRR discounted risk-free yield model bond | G48: =_xlfn.LET(_xlpm.CF, _xlfn.XLOOKUP(G$10, T.RefPortCurrencyCorp[Issuer], T.RefPortCurrencyCorp[RFR Cash Flow]), _xlpm.IER,$T$48, _xlpm.DUR, G13, _xlpm.CF * (1 + _xlpm.IER)^(-_xlpm.DUR)) -> 0.1586276358 | H48: =_xlfn.LET(_xlpm.CF, _xlfn.XLOOKUP(H$10, T.RefPortCurrencyCorp[Issuer], T.RefPortCurrencyCorp[RFR Cash Flow]), _xlpm.IER,$T$48, _xlpm.DUR, H13, _xlpm.CF * (1 + _xlpm.IER)^(-_xlpm.DUR)) -> 0.1315161814 | I48: =_xlfn.LET(_xlpm.CF, _xlfn.XLOOKUP(I$10, T.RefPortCurrencyCorp[Issuer], T.RefPortCurrencyCorp[RFR Cash Flow]), _xlpm.IER,$T$48, _xlpm.DUR, I13, _xlpm.CF * (1 + _xlpm.IER)^(-_xlpm.DUR)) -> 0.3052412676 | J48: =_xlfn.LET(_xlpm.CF, _xlfn.XLOOKUP(J$10, T.RefPortCurrencyCorp[Issuer], T.RefPortCurrencyCorp[RFR Cash Flow]), _xlpm.IER,$T$48, _xlpm.DUR, J13, _xlpm.CF * (1 + _xlpm.IER)^(-_xlpm.DUR)) -> 0.1312695749 | K48: =_xlfn.LET(_xlpm.CF, _xlfn.XLOOKUP(K$10, T.RefPortCurrencyCorp[Issuer], T.RefPortCurrencyCorp[RFR Cash Flow]), _xlpm.IER,$T$48, _xlpm.DUR, K13, _xlpm.CF * (1 + _xlpm.IER)^(-_xlpm.DUR)) -> 0.0464715958 | L48: =_xlfn.LET(_xlpm.CF, _xlfn.XLOOKUP(L$10, T.RefPortCurrencyCorp[Issuer], T.RefPortCurrencyCorp[RFR Cash Flow]), _xlpm.IER,$T$48, _xlpm.DUR, L13, _xlpm.CF * (1 + _xlpm.IER)^(-_xlpm.DUR)) -> 0.0440088039 | M48: =_xlfn.LET(_xlpm.CF, _xlfn.XLOOKUP(M$10, T.RefPortCurrencyCorp[Issuer], T.RefPortCurrencyCorp[RFR Cash Flow]), _xlpm.IER,$T$48, _xlpm.DUR, M13, _xlpm.CF * (1 + _xlpm.IER)^(-_xlpm.DUR)) -> 0.09214117787 | N48: =_xlfn.LET(_xlpm.CF, _xlfn.XLOOKUP(N$10, T.RefPortCurrencyCorp[Issuer], T.RefPortCurrencyCorp[RFR Cash Flow]), _xlpm.IER,$T$48, _xlpm.DUR, N13, _xlpm.CF * (1 + _xlpm.IER)^(-_xlpm.DUR)) -> 0.1308112222 | O48: =_xlfn.LET(_xlpm.CF, _xlfn.XLOOKUP(O$10, T.RefPortCurrencyCorp[Issuer], T.RefPortCurrencyCorp[RFR Cash Flow]), _xlpm.IER,$T$48, _xlpm.DUR, O13, _xlpm.CF * (1 + _xlpm.IER)^(-_xlpm.DUR)) -> 0.01020123792 | P48: =_xlfn.LET(_xlpm.CF, _xlfn.XLOOKUP(P$10, T.RefPortCurrencyCorp[Issuer], T.RefPortCurrencyCorp[RFR Cash Flow]), _xlpm.IER,$T$48, _xlpm.DUR, P13, _xlpm.CF * (1 + _xlpm.IER)^(-_xlpm.DUR)) -> 0.01051483636 | R48: =SUM(G48:P48) -> 1.060803534 | S48: =(SUM(G41:P41)-R48)^2 -> 6.134697117e-20 | T48: 0.01910404686
F49: IRR discounted risk-corrected yield model bond | G49: =_xlfn.LET(_xlpm.CF, _xlfn.XLOOKUP(G$10, T.RefPortCurrencyCorp[Issuer], T.RefPortCurrencyCorp[RC Yield Cash Flow]), _xlpm.IER,$T$49, _xlpm.DUR, G13, _xlpm.CF * (1 + _xlpm.IER)^(-_xlpm.DUR)) -> 0.1589804633 | H49: =_xlfn.LET(_xlpm.CF, _xlfn.XLOOKUP(H$10, T.RefPortCurrencyCorp[Issuer], T.RefPortCurrencyCorp[RC Yield Cash Flow]), _xlpm.IER,$T$49, _xlpm.DUR, H13, _xlpm.CF * (1 + _xlpm.IER)^(-_xlpm.DUR)) -> 0.1331311984 | I49: =_xlfn.LET(_xlpm.CF, _xlfn.XLOOKUP(I$10, T.RefPortCurrencyCorp[Issuer], T.RefPortCurrencyCorp[RC Yield Cash Flow]), _xlpm.IER,$T$49, _xlpm.DUR, I13, _xlpm.CF * (1 + _xlpm.IER)^(-_xlpm.DUR)) -> 0.3088237791 | J49: =_xlfn.LET(_xlpm.CF, _xlfn.XLOOKUP(J$10, T.RefPortCurrencyCorp[Issuer], T.RefPortCurrencyCorp[RC Yield Cash Flow]), _xlpm.IER,$T$49, _xlpm.DUR, J13, _xlpm.CF * (1 + _xlpm.IER)^(-_xlpm.DUR)) -> 0.1322181616 | K49: =_xlfn.LET(_xlpm.CF, _xlfn.XLOOKUP(K$10, T.RefPortCurrencyCorp[Issuer], T.RefPortCurrencyCorp[RC Yield Cash Flow]), _xlpm.IER,$T$49, _xlpm.DUR, K13, _xlpm.CF * (1 + _xlpm.IER)^(-_xlpm.DUR)) -> 0.04643044648 | L49: =_xlfn.LET(_xlpm.CF, _xlfn.XLOOKUP(L$10, T.RefPortCurrencyCorp[Issuer], T.RefPortCurrencyCorp[RC Yield Cash Flow]), _xlpm.IER,$T$49, _xlpm.DUR, L13, _xlpm.CF * (1 + _xlpm.IER)^(-_xlpm.DUR)) -> 0.04442995129 | M49: =_xlfn.LET(_xlpm.CF, _xlfn.XLOOKUP(M$10, T.RefPortCurrencyCorp[Issuer], T.RefPortCurrencyCorp[RC Yield Cash Flow]), _xlpm.IER,$T$49, _xlpm.DUR, M13, _xlpm.CF * (1 + _xlpm.IER)^(-_xlpm.DUR)) -> 0.09191295156 | N49: =_xlfn.LET(_xlpm.CF, _xlfn.XLOOKUP(N$10, T.RefPortCurrencyCorp[Issuer], T.RefPortCurrencyCorp[RC Yield Cash Flow]), _xlpm.IER,$T$49, _xlpm.DUR, N13, _xlpm.CF * (1 + _xlpm.IER)^(-_xlpm.DUR)) -> 0.1309105295 | O49: =_xlfn.LET(_xlpm.CF, _xlfn.XLOOKUP(O$10, T.RefPortCurrencyCorp[Issuer], T.RefPortCurrencyCorp[RC Yield Cash Flow]), _xlpm.IER,$T$49, _xlpm.DUR, O13, _xlpm.CF * (1 + _xlpm.IER)^(-_xlpm.DUR)) -> 0.01052127236 | P49: =_xlfn.LET(_xlpm.CF, _xlfn.XLOOKUP(P$10, T.RefPortCurrencyCorp[Issuer], T.RefPortCurrencyCorp[RC Yield Cash Flow]), _xlpm.IER,$T$49, _xlpm.DUR, P13, _xlpm.CF * (1 + _xlpm.IER)^(-_xlpm.DUR)) -> 0.01093019244 | R49: =SUM(G49:P49) -> 1.068288946 | S49: =(SUM(G42:P42)-R49)^2 -> 7.66790873e-09 | T49: 0.02411733074
F51: Portfolio spread and risk correction | G51: Total
F52: Portfolio spread | G52: =V.IER_Yield_Corp_Cur-V.IER_RFR_Corp_Cur -> 0.009586627857
F53: Portfolio risk correction | G53: =V.IER_Yield_Corp_Cur-V.IER_RCYield_Corp_Cur -> 0.004573343979

Sheet RCS
M3: ©EIOPA, 2026.
F6: Risk-Corrected Spreads
F8: Currency RCS
F10: IRRs calculated | G10: =_xlfn.LET(_xlpm.THRESHOLD, 0.000001, AND(V.IER_Yield_Gov_Cur_Obj < _xlpm.THRESHOLD, V.IER_RFR_Gov_Cur_Obj < _xlpm.THRESHOLD, V.IER_RCYield_Gov_Cur_Obj < _xlpm.THRESHOLD, V.IER_Yield_Corp_Cur_Obj < _xlpm.THRESHOLD, V.IER_RFR_Corp_Cur_Obj < _xlpm.THRESHOLD, V.IER_RCYield_Corp_Cur_Obj < _xlpm.THRESHOLD)) -> TRUE
G11: =V.W_GOV_GBP/(V.W_GOV_GBP+V.W_CORP_GBP) -> 0.2355371901
G12: =V.W_CORP_GBP/(V.W_GOV_GBP+V.W_CORP_GBP) -> 0.7644628099
G13: =V.S_GOV_GBP -> 0.009345356604
G14: =V.S_CORP_GBP -> 0.009586627857
G15: =V.RC_GOV_GBP -> 0
G16: =V.RC_CORP_GBP -> 0.004573343979
G17: =V.W_GOV_GBP_NORM * V.S_GOV_GBP + V.W_CORP_GBP_NORM * V.S_CORP_GBP -> 0.009529799504
G18: =V.W_GOV_GBP_NORM * V.RC_GOV_GBP + V.W_CORP_GBP_NORM * V.RC_CORP_GBP -> 0.003496151389
G19: =V.S_GBP-V.RC_GBP -> 0.006033648115

Sheet Disclaimer
M3: ©EIOPA, 2026.
F6: Disclaimer
F8: The content of this workbook is made available by EIOPA for public information purposes only. It is not intended to be used for any other purpose. EIOPA shall not be liable for any error or inaccuracy in the content of this workbook, for any action taken in reliance thereon. EIOPA expressly disclaims all warranties, expressed or implied, as to the accuracy of any of the content provided or as to the merchantability or fitness of the content provided. © EIOPA - European Insurance and Occupational Pensions Authority, 2026. Reproduction is authorised provided that you acknowledge EIOPA as the source: "Source: © EIOPA – European Insurance and Occupational Pensions Authority".
